bitfinex/quotes_SOLUSD_20220210
["timestamp","ask_amount","ask_price","bid_price","bid_amount"]
[1644473620925,19.49839994,111.74,111.73,2.9e-05]
[1644473634538,6.06439994,111.74,111.73,2.9e-05]
[1644473635939,19.49619994,111.74,111.73,2.9e-05]
[1644473643173,46.04158093,111.77,111.73,2.9e-05]
[1644473643471,1.26788093,111.78,111.73,2.9e-05]
[1644473643669,25.65418093,111.79,111.73,2.9e-05]
[1644473643869,1.26788093,111.8,111.73,2.9e-05]
[1644473644068,46.64675387,111.79,111.73,12.460029]
[1644473644270,46.64675387,111.79,111.74,0.024]
[1644473644870,47.9146348,111.79,111.74,0.024]
[1644473645774,61.3422348,111.79,111.74,0.024]
[1644473646574,1.26788093,111.79,111.74,25.9098]
[1644473647179,1.26788093,111.8,111.74,25.9098]
[1644473647573,1.26788093,111.8,111.74,26.1598]
[1644473647975,1.26788093,111.8,111.74,25.9098]
[1644473648777,14.69368093,111.8,111.74,25.9098]
[1644473649977,1.26788093,111.8,111.74,25.9098]
[1644473650179,1.26788093,111.8,111.74,27.9033399]
[1644473650375,1.26788093,111.82,111.74,183.7133399]
[1644473650575,1.26788093,111.83,111.77,13.4183]
[1644473650775,1.26788093,111.84,111.78,12.46]
[1644473650980,46.80427442,111.84,111.79,23.9192]
[1644473651176,46.80427442,111.84,111.79,36.3792]
[1644473652076,1.26788093,111.84,111.79,36.3792]
[1644473652278,1.26788093,111.84,111.79,50.0486]
[1644473652478,1.26788093,111.85,111.79,49.7986]
[1644473655480,43.49361837,111.86,111.79,49.7986]
[1644473655881,56.91331837,111.86,111.79,12.46]
[1644473656283,1.26788093,111.85,111.79,12.46]
[1644473656482,1.26788093,111.85,111.74,22.6164]
[1644473656685,1.26788093,111.84,111.75,12.46]
[1644473656885,13.4259,111.81,111.74,22.6164]
[1644473657283,15.42038298,111.8,111.74,59.77528934]
[1644473657985,15.42038298,111.8,111.74,22.6164]
[1644473658385,28.84668298,111.8,111.74,22.6164]
[1644473658785,13.824511,111.79,111.73,2.9e-05]
[1644473659387,35.462629,111.79,111.73,2.9e-05]
[1644473659586,1.26788093,111.8,111.73,2.9e-05]
[1644473659787,13.4304,111.78,111.73,2.9e-05]
[1644473663290,11.845158,111.77,111.73,2.9e-05]
[1644473663491,13.4312,111.76,111.73,2.9e-05]
[1644473663693,6.06439994,111.75,111.73,2.9e-05]
[1644473665794,13.4277,111.78,111.73,2.9e-05]
[1644473665995,7.0,111.81,111.74,12.46]
[1644473666198,46.9756,111.87,111.74,12.46]
[1644473666199,1.26788093,111.83,111.74,14.4535399]
[1644473666394,1.26788093,111.84,111.74,14.4535399]
[1644473666595,1.26788093,111.84,111.75,1.7435399]
[1644473666794,46.32402948,111.83,111.76,53.44270499]
[1644473666995,46.32402948,111.83,111.76,66.86520499]
[1644473667194,46.32402948,111.83,111.77,1.7435399]
[1644473667394,46.32402948,111.83,111.77,14.2035399]
[1644473667894,46.32402948,111.83,111.77,12.46]
[1644473668096,46.32402948,111.83,111.75,37.3097]
[1644473668295,59.74752948,111.83,111.75,37.3097]
[1644473668495,1.26788093,111.82,111.75,37.3097]
[1644473670697,13.426,111.81,111.75,37.3097]
[1644473672195,14.69388093,111.81,111.75,37.3097]
[1644473672394,14.69388093,111.81,111.73,36.703129]
[1644473672595,14.69388093,111.81,111.73,23.276629]
[1644473672995,14.69388093,111.81,111.73,59.0453953]
[1644473673996,14.69388093,111.81,111.74,12.46]
[1644473673997,1.26788093,111.81,111.74,12.46]
[1644473674217,1.26788093,111.82,111.76,13.4228]
[1644473674404,1.26788093,111.82,111.76,25.8828]
[1644473674598,47.59191041,111.83,111.76,26.1328]
[1644473674998,46.32402948,111.83,111.76,26.1328]
[1644473675597,47.59191041,111.83,111.76,26.1328]
[1644473675798,59.74722948,111.83,111.76,26.1328]
[1644473675999,61.01511041,111.83,111.77,46.9232634]
[1644473676198,22.5216,111.85,111.77,60.5951634]
[1644473676199,1.26788093,111.84,111.77,60.5951634]
[1644473676399,1.26788093,111.84,111.77,73.0551634]
[1644473677108,1.26788093,111.84,111.77,26.1319]
[1644473677300,14.68968093,111.84,111.77,26.1319]
[1644473678200,34.41122043,111.83,111.77,26.1319]
[1644473683227,14.68968093,111.84,111.77,26.1319]
[1644473683527,1.26788093,111.84,111.77,26.1319]
[1644473684128,48.71879644,111.84,111.77,66.48726005]
[1644473684328,48.71879644,111.84,111.77,54.02726005]
[1644473685029,48.71879644,111.84,111.77,66.48726005]
[1644473686429,48.71879644,111.84,111.77,54.02726005]
[1644473687230,47.45091551,111.84,111.77,54.02726005]
[1644473692338,60.87261551,111.84,111.77,54.02726005]
[1644473692538,62.14049644,111.84,111.77,54.02726005]
[1644473692738,62.14049644,111.84,111.76,24.068]
[1644473692938,1.26788093,111.83,111.74,12.46]
[1644473693139,1.26788093,111.81,111.74,22.8455]
[1644473693339,1.26788093,111.82,111.74,22.8455]
[1644473693738,1.26788093,111.82,111.75,42.24716581]
[1644473694142,1.26788093,111.81,111.75,42.24716581]
[1644473694639,10.19520491,111.8,111.75,42.24716581]
[1644473694839,10.19520491,111.8,111.74,36.2709]
[1644473695039,10.19520491,111.8,111.74,36.5209]
[1644473695638,10.19520491,111.8,111.74,36.2709]
[1644473695839,10.19520491,111.8,111.74,73.93809446]
[1644473696042,1.26788093,111.81,111.75,1.73677129]
[1644473696238,46.9222,111.83,111.75,1.73677129]
[1644473696239,1.26788093,111.82,111.75,1.98677129]
[1644473696440,1.26788093,111.82,111.77,13.4215]
[1644473696842,48.19008093,111.83,111.77,13.6715]
[1644473697041,83.59489626,111.83,111.77,15.40827129]
[1644473697538,36.67269626,111.83,111.77,15.40827129]
[1644473698040,36.67269626,111.83,111.77,15.15827129]
[1644473698240,36.67269626,111.83,111.77,13.4215]
[1644473698643,36.67269626,111.83,111.77,13.6715]
[1644473699942,1.26788093,111.83,111.78,34.37288659]
[1644473700145,1.26788093,111.83,111.78,47.79368659]
[1644473700745,1.26788093,111.83,111.78,48.04368659]
[1644473701747,1.26788093,111.83,111.78,47.79368659]
[1644473702147,1.26788093,111.83,111.78,13.4208]
[1644473704053,1.26788093,111.82,111.78,13.4208]
[1644473705148,1.26788093,111.82,111.76,36.2761]
[1644473705448,1.26788093,111.82,111.77,13.4222]
[1644473705649,1.26788093,111.82,111.76,36.5261]
[1644473705848,1.26788093,111.82,111.76,36.2761]
[1644473706050,1.26788093,111.81,111.76,23.8161]
[1644473706250,22.79441232,111.8,111.76,23.8161]
[1644473706950,14.69278093,111.81,111.76,23.8161]
[1644473709156,31.91978961,111.78,111.76,38.97637129]
[1644473709355,63.83957922,111.78,111.76,27.62027129]
[1644473709557,63.83957922,111.78,111.77,4.34315499]
[1644473709961,63.83957922,111.78,111.77,4.59315499]
[1644473710257,1.26788093,111.83,111.77,30.47495499]
[1644473710457,7.0,111.89,111.78,245.59]
[1644473710658,7.0,111.89,111.79,170.00677129]
[1644473710856,0.024,111.92,111.81,155.81]
[1644473711057,0.024,111.93,111.82,59.4641]
[1644473711256,41.48821768,111.93,111.82,100.29453485]
[1644473711456,13.4375,111.92,111.83,13.4139]
[1644473711658,15.98431087,111.92,111.84,12.46]
[1644473711857,13.4375,111.92,111.84,12.46]
[1644473712255,13.4375,111.92,111.84,12.71]
[1644473713357,12.9375,111.92,111.84,26.1234]
[1644473713960,12.9375,111.92,111.84,25.8734]
[1644473714659,12.9375,111.92,111.84,26.1234]
[1644473714859,12.9375,111.92,111.81,46.44747129]
[1644473715059,13.4261,111.83,111.73,2.9e-05]
[1644473715261,0.30931715,111.81,111.73,2.9e-05]
[1644473715762,67.72372187,111.8,111.73,2.9e-05]
[1644473715959,45.21212857,111.8,111.73,2.9e-05]
[1644473716159,13.4278,111.8,111.73,2.9e-05]
[1644473717464,12.46,111.79,111.73,2.9e-05]
[1644473719763,25.8879,111.79,111.73,2.9e-05]
[1644473721774,12.46,111.79,111.73,2.9e-05]
[1644473721967,43.6810727,111.84,111.73,2.9e-05]
[1644473721968,44.7464,111.85,111.73,2.9e-05]
[1644473722167,12.46,111.84,111.73,6.000029]
[1644473722367,12.46,111.84,111.74,42.41465009]
[1644473722767,12.46,111.84,111.74,42.66465009]
[1644473723787,25.8818,111.84,111.74,42.66465009]
[1644473724988,25.8818,111.84,111.74,42.41465009]
[1644473725187,25.8818,111.84,111.74,42.66465009]
[1644473725387,25.8818,111.84,111.74,42.41465009]
[1644473725594,25.8818,111.84,111.74,42.66465009]
[1644473726788,25.8818,111.84,111.74,56.08695009]
[1644473727790,25.8818,111.84,111.74,42.66465009]
[1644473728192,25.3818,111.84,111.74,42.66465009]
[1644473729289,25.3818,111.84,111.74,56.08705009]
[1644473730391,25.3818,111.84,111.74,55.83705009]
[1644473732595,25.3818,111.84,111.74,42.41465009]
[1644473735196,25.3818,111.84,111.74,42.66465009]
[1644473737998,25.3818,111.84,111.74,42.41465009]
[1644473738398,27.6330023,111.84,111.74,42.41465009]
[1644473738607,34.6330023,111.84,111.74,42.41465009]
[1644473738801,27.6330023,111.84,111.74,42.41465009]
[1644473738998,7.0,111.83,111.74,42.41465009]
[1644473739199,13.4266,111.81,111.74,42.41465009]
[1644473739400,25.8866,111.81,111.73,24.322429]
[1644473741732,25.8866,111.81,111.74,44.86256104]
[1644473743211,25.8866,111.81,111.73,24.322429]
[1644473743410,25.8866,111.81,111.73,2.9e-05]
[1644473746115,2.55085114,111.8,111.73,2.9e-05]
[1644473746312,13.4321,111.78,111.73,2.9e-05]
[1644473746514,37.3693,111.77,111.73,2.9e-05]
[1644473747312,13.4334,111.76,111.73,2.9e-05]
[1644473747513,25.8934,111.76,111.73,2.9e-05]
[1644473757445,13.4379,111.74,111.73,2.9e-05]
[1644473757645,25.8979,111.74,111.73,2.9e-05]
[1644473766458,25.8979,111.74,111.66,0.024]
[1644473767059,25.8979,111.74,111.66,13.459]
[1644473768861,25.8979,111.74,111.67,42.79613301]
[1644473769160,25.8979,111.74,111.67,42.82013301]
[1644473771067,25.8979,111.74,111.67,0.024]
[1644473771268,25.8979,111.74,111.66,13.459]
[1644473771665,25.8979,111.74,111.66,0.024]
[1644473773368,28.1491023,111.74,111.66,0.024]
[1644473773766,28.1491023,111.74,111.66,48.77222217]
[1644473774165,28.1491023,111.74,111.66,0.024]
[1644473774767,207.6521023,111.74,111.64,0.024]
[1644473774971,207.6521023,111.74,111.6,22.9162]
[1644473775168,214.6521023,111.74,111.61,42.72713004]
[1644473775370,214.6521023,111.74,111.62,0.024]
[1644473775790,214.6521023,111.74,111.63,48.51773936]
[1644473776190,214.6521023,111.74,111.64,0.024]
[1644473778492,232.9691689,111.74,111.64,0.024]
[1644473778692,248.95527736,111.74,111.64,0.024]
[1644473778891,173.95527736,111.74,111.64,0.024]
[1644473779092,176.20647966,111.74,111.64,0.024]
[1644473779494,12.46,111.73,111.64,0.024]
[1644473779696,13.4407,111.71,111.64,0.024]
[1644473779895,12.46,111.7,111.63,48.54173936]
[1644473781095,12.46,111.7,111.63,0.024]
[1644473781394,13.4407,111.68,111.63,0.024]
[1644473781594,13.4407,111.68,111.62,13.44]
[1644473782297,13.4407,111.68,111.61,48.48386327]
[1644473782495,13.4407,111.68,111.61,0.024]
[1644473782696,25.9007,111.68,111.61,0.024]
[1644473783894,50.2487,111.68,111.61,0.024]
[1644473784496,2.2512023,111.67,111.59,0.024]
[1644473784695,13.4473,111.65,111.58,6.024]
[1644473784898,25.9073,111.65,111.59,0.024]
[1644473785097,25.9073,111.65,111.58,6.024]
[1644473785296,25.9073,111.65,111.58,49.99677083]
[1644473785896,25.9073,111.65,111.58,6.024]
[1644473787597,25.9073,111.65,111.58,0.024]
[1644473787997,28.1585023,111.65,111.58,0.024]
[1644473788198,24.094,111.64,111.55,0.024]
[1644473788398,13.4503,111.62,111.55,0.024]
[1644473788698,13.4503,111.62,111.55,42.0347469]
[1644473789098,13.4503,111.62,111.55,66.6562469]
[1644473790301,25.9103,111.62,111.55,66.6562469]
[1644473794603,25.9103,111.62,111.55,80.1042469]
[1644473796108,13.4503,111.62,111.55,80.3542469]
[1644473796309,13.445,111.63,111.55,80.3542469]
[1644473796607,12.46,111.67,111.58,13.4442]
[1644473796808,12.46,111.67,111.59,35.24663576]
[1644473797107,12.46,111.67,111.59,35.27063576]
[1644473797811,13.4431,111.65,111.59,48.71433576]
[1644473798007,13.4431,111.65,111.59,48.69033576]
[1644473803711,13.4431,111.65,111.59,35.24663576]
[1644473806615,13.4431,111.65,111.58,13.4689]
[1644473806816,13.4431,111.65,111.58,0.024]
[1644473810720,25.9031,111.65,111.58,0.024]
[1644473811121,32.9031,111.65,111.58,0.024]
[1644473811820,7.0,111.64,111.58,0.024]
[1644473812020,25.9089,111.63,111.57,23.0012]
[1644473817424,25.9089,111.63,111.56,0.024]
[1644473817623,25.9089,111.63,111.55,0.024]
[1644473817624,13.4525,111.6,111.55,0.024]
[1644473817823,13.4525,111.6,111.52,22.9637]
[1644473817824,25.9125,111.6,111.53,6.0]
[1644473818024,25.9125,111.6,111.53,6.024]
[1644473818223,25.9125,111.6,111.54,47.39437719]
[1644473819227,25.9125,111.6,111.53,6.024]
[1644473822026,25.9125,111.6,111.54,39.50827859]
[1644473822728,13.4525,111.6,111.54,39.50827859]
[1644473823729,13.4525,111.6,111.54,52.95807859]
[1644473824128,13.4485,111.61,111.54,53.20807859]
[1644473824333,2.54167814,111.66,111.54,53.23207859]
[1644473824334,513.14575943,111.65,111.54,53.23207859]
[1644473824529,455.86055943,111.65,111.56,35.2917784]
[1644473824729,455.86055943,111.65,111.58,45.52588493]
[1644473824929,455.86055943,111.65,111.58,45.54988493]
[1644473825129,24.6815,111.66,111.58,45.54988493]
[1644473825731,19.46,111.67,111.58,59.24468493]
[1644473826029,351.46094899,111.7,111.59,0.024]
[1644473826030,2.54167814,111.69,111.59,0.024]
[1644473826229,2.54167814,111.7,111.6,35.72227813]
[1644473826432,33.68267814,111.71,111.61,23.2119]
[1644473826628,17.55033311,111.7,111.61,23.1879]
[1644473826832,13.4413,111.67,111.62,0.024]
[1644473827029,25.9013,111.67,111.6,0.024]
[1644473827230,25.9013,111.67,111.57,23.9093]
[1644473827430,2.2512023,111.66,111.58,0.024]
[1644473827631,12.46,111.65,111.58,0.024]
[1644473828130,14.7112023,111.65,111.58,0.024]
[1644473828430,21.7112023,111.65,111.58,0.024]
[1644473828829,13.4501,111.64,111.58,0.024]
[1644473829029,25.9101,111.64,111.56,34.59624035]
[1644473829432,25.9101,111.64,111.56,0.024]
[1644473829628,49.77,111.64,111.56,24.2269]
[1644473830536,51.04407505,111.64,111.56,24.2269]
[1644473831830,1.27407505,111.63,111.56,24.2269]
[1644473832033,13.4499,111.61,111.56,24.2269]
[1644473832232,13.4499,111.61,111.56,24.2029]
[1644473832830,13.4499,111.61,111.56,66.2505252]
[1644473833232,13.4475,111.62,111.56,66.5005252]
[1644473833532,13.4475,111.62,111.56,24.2269]
[1644473833733,13.4475,111.62,111.56,24.2029]
[1644473834434,13.4464,111.63,111.57,41.86687649]
[1644473835732,13.4464,111.63,111.57,55.31247649]
[1644473837933,13.4454,111.64,111.57,55.31247649]
[1644473838135,13.4454,111.64,111.57,55.33647649]
[1644473839534,13.4454,111.64,111.57,41.89087649]
[1644473839535,11.9454,111.64,111.57,41.89087649]
[1644473841738,11.9454,111.64,111.57,55.33697649]
[1644473842139,11.9454,111.64,111.57,41.89087649]
[1644473842341,13.21947505,111.64,111.57,41.89087649]
[1644473843740,13.21947505,111.64,111.57,0.024]
[1644473843940,1.27407505,111.63,111.57,0.024]
[1644473844142,13.4494,111.62,111.57,0.024]
[1644473844340,13.4494,111.62,111.56,24.2029]
[1644473844743,13.4494,111.62,111.57,40.13785878]
[1644473845142,13.4494,111.62,111.56,24.2269]
[1644473845344,13.4494,111.62,111.56,24.2029]
[1644473845545,13.4494,111.62,111.55,24.6629]
[1644473845743,14.72347505,111.62,111.55,24.6629]
[1644473845944,1.27407505,111.61,111.55,24.6629]
[1644473846145,13.4517,111.6,111.55,24.6629]
[1644473846344,13.4517,111.6,111.55,24.6389]
[1644473846759,13.4517,111.6,111.54,40.04154177]
[1644473849160,13.4517,111.6,111.53,19.4747]
[1644473849562,13.4517,111.6,111.53,6.024]
[1644473849761,13.4517,111.6,111.53,29.6843]
[1644473855571,13.4517,111.6,111.54,41.287157]
[1644473857974,13.4517,111.6,111.53,29.6843]
[1644473862785,13.4517,111.6,111.54,42.17419287]
[1644473865087,13.4517,111.6,111.53,29.6843]
[1644473869591,13.4517,111.6,111.53,23.6843]
[1644473869789,14.72577505,111.6,111.53,23.6843]
[1644473869992,23.97697735,111.6,111.53,23.6843]
[1644473870395,21.72577505,111.6,111.53,23.6843]
[1644473871493,34.18577505,111.6,111.53,23.6843]
[1644473872697,13.4547,111.58,111.53,23.6843]
[1644473872897,13.4547,111.58,111.53,23.6603]
[1644473884829,12.9547,111.58,111.53,23.6603]
[1644473888538,14.22877505,111.58,111.53,23.6603]
[1644473888836,14.22877505,111.58,111.52,0.024]
[1644473889037,1.27407505,111.56,111.5,0.024]
[1644473889235,1.27407505,111.56,111.48,24.3927]
[1644473889236,13.4586,111.55,111.48,24.3927]
[1644473889435,14.73267505,111.55,111.48,24.3927]
[1644473890135,13.4586,111.55,111.48,24.3927]
[1644473890344,14.73267505,111.55,111.48,24.3927]
[1644473892140,21.73267505,111.55,111.48,24.3927]
[1644473893139,20.4586,111.55,111.48,24.3927]
[1644473893939,13.4586,111.55,111.48,24.3927]
[1644473895241,37.63067505,111.55,111.48,24.3927]
[1644473897644,36.3566,111.55,111.48,24.3927]
[1644473900652,13.4586,111.55,111.48,24.3927]
[1644473908673,14.73267505,111.55,111.48,24.3927]
[1644473910674,37.92297505,111.55,111.48,24.3927]
[1644473914782,1.27407505,111.54,111.48,24.3927]
[1644473914983,1.27407505,111.54,111.48,24.3687]
[1644473915184,13.4589,111.53,111.48,24.3687]
[1644473916785,14.73297505,111.53,111.48,24.3687]
[1644473916986,13.4589,111.53,111.48,24.3687]
[1644473917191,13.4589,111.53,111.49,37.29704151]
[1644473917390,1.27407505,111.55,111.49,37.29704151]
[1644473917586,1.27407505,111.55,111.49,39.29475098]
[1644473917987,1.27407505,111.56,111.49,39.29475098]
[1644473918186,1.27407505,111.56,111.5,23.2273]
[1644473918586,1.27407505,111.56,111.51,13.452]
[1644473918986,1.27407505,111.56,111.51,13.702]
[1644473919188,1.27407505,111.56,111.52,12.46]
[1644473919387,9.54167814,111.59,111.52,12.46]
[1644473919388,1.27407505,111.57,111.52,12.46]
[1644473919588,1.27407505,111.57,111.53,13.4501]
[1644473919986,1.27407505,111.57,111.52,23.5249]
[1644473920789,14.72607505,111.57,111.52,36.9774]
[1644473920988,14.72607505,111.57,111.53,47.0406068]
[1644473922091,14.72607505,111.57,111.52,23.5249]
[1644473922691,14.72607505,111.57,111.53,13.4517]
[1644473925518,13.452,111.57,111.53,13.4517]
[1644473936407,14.72527505,111.58,111.53,13.4517]
[1644473936817,13.4512,111.58,111.53,13.4517]
[1644473937704,14.72527505,111.58,111.53,13.4517]
[1644473939008,13.4512,111.58,111.53,13.4517]
[1644473939612,14.72527505,111.58,111.53,13.4517]
[1644473940411,1.27407505,111.58,111.53,13.4517]
[1644473940635,1.27407505,111.59,111.55,13.4475]
[1644473940838,1.27407505,111.6,111.56,35.67262393]
[1644473941135,1.27407505,111.6,111.56,58.90842393]
[1644473941435,1.27407505,111.61,111.56,59.15842393]
[1644473942335,1.27407505,111.61,111.57,13.4463]
[1644473943537,2.56567814,111.64,111.57,13.4463]
[1644473943538,1.27407505,111.6,111.57,13.4463]
[1644473943740,1.27407505,111.6,111.58,3.03219997]
[1644473944137,1.27407505,111.6,111.59,3.03219997]
[1644473944338,1.27407505,111.6,111.58,3.03219997]
[1644473945237,1.27407505,111.6,111.57,13.4463]
[1644473946438,1.27407505,111.6,111.56,36.6835]
[1644473952548,14.72287505,111.6,111.56,23.2358]
[1644473952752,1.27407505,111.59,111.56,23.2358]
[1644473952950,1.27407505,111.59,111.57,6.06439994]
[1644473953753,1.27407505,111.59,111.57,3.03219997]
[1644473953951,1.27407505,111.59,111.56,23.2358]
[1644473954152,14.72397505,111.59,111.56,23.2358]
[1644473954354,14.72397505,111.59,111.54,22.8478]
[1644473955154,1.27407505,111.58,111.54,22.8478]
[1644473955356,13.4518,111.57,111.54,22.8478]
[1644473955554,13.4518,111.57,111.55,6.06439994]
[1644473955954,13.4518,111.57,111.55,3.03219997]
[1644473956756,13.4518,111.57,111.53,36.5965]
[1644473959158,14.72587505,111.57,111.53,36.5965]
[1644473966568,14.72587505,111.57,111.53,23.1452]
[1644473967704,14.72587505,111.57,111.51,13.454]
[1644473967894,13.4557,111.55,111.51,0.024]
[1644473968093,14.72977505,111.55,111.5,0.024]
[1644473968392,14.72977505,111.55,111.49,47.2426]
[1644473968592,14.72977505,111.55,111.49,84.59110401]
[1644473971896,13.4557,111.55,111.49,84.61510401]
[1644473972095,13.4557,111.55,111.49,47.2426]
[1644473972499,14.72977505,111.55,111.49,47.2426]
[1644473972697,13.4557,111.55,111.49,60.6981]
[1644473973400,14.72977505,111.55,111.49,60.7221]
[1644473973898,13.4557,111.55,111.49,60.7221]
[1644473975199,13.4557,111.55,111.49,47.2666]
[1644473975399,14.72977505,111.55,111.49,24.1416]
[1644473975900,39.32897505,111.55,111.49,24.1416]
[1644473983509,1.27407505,111.54,111.49,24.1416]
[1644473983710,13.4567,111.53,111.49,24.1416]
[1644473983912,13.4567,111.53,111.49,24.1176]
[1644473993324,14.73077505,111.53,111.49,24.1176]
[1644473995525,14.73077505,111.53,111.47,0.024]
[1644473995723,1.27407505,111.52,111.47,0.024]
[1644473995923,13.4603,111.51,111.47,0.024]
[1644473996726,12.4603,111.51,111.47,0.024]
[1644474000331,13.73437505,111.51,111.47,0.024]
[1644474000552,24.08857505,111.5,111.44,0.024]
[1644474000732,24.08857505,111.5,111.42,23.0965]
[1644474000733,14.73857505,111.49,111.42,23.0965]
[1644474000932,1.27407505,111.48,111.43,0.024]
[1644474001135,1.27407505,111.48,111.42,23.0725]
[1644474001336,46.16117505,111.48,111.42,23.0725]
[1644474001532,46.16117505,111.48,111.4,0.024]
[1644474001733,37.4523,111.47,111.4,24.516]
[1644474001933,37.4523,111.47,111.4,24.492]
[1644474001934,1.27407505,111.46,111.4,24.492]
[1644474002132,1.27407505,111.46,111.41,0.024]
[1644474002332,1.27407505,111.46,111.4,24.492]
[1644474002736,13.469,111.45,111.4,24.492]
[1644474003334,13.469,111.45,111.39,0.024]
[1644474004032,13.469,111.45,111.38,22.6304]
[1644474004234,13.469,111.45,111.39,23.3652]
[1644474004532,13.469,111.45,111.39,23.3892]
[1644474005435,25.929,111.45,111.39,0.024]
[1644474005635,25.929,111.45,111.38,22.6064]
[1644474006241,25.929,111.45,111.37,0.024]
[1644474007639,22.889,111.44,111.36,0.024]
[1644474007839,13.4737,111.42,111.36,0.024]
[1644474015769,37.7121,111.42,111.36,0.024]
[1644474024084,44.7121,111.42,111.36,0.024]
[1644474025988,46.9633023,111.42,111.36,0.024]
[1644474026186,12.46,111.41,111.36,0.024]
[1644474026387,13.4766,111.4,111.36,0.024]
[1644474036017,12.1266,111.4,111.36,0.024]
[1644474038820,13.40067505,111.4,111.36,0.024]
[1644474044226,13.40067505,111.4,111.35,23.487]
[1644474046630,1.27407505,111.39,111.35,23.487]
[1644474046830,13.4759,111.38,111.35,23.487]
[1644474049732,14.74777505,111.39,111.35,23.487]
[1644474050234,13.4737,111.39,111.35,23.487]
[1644474056749,14.74777505,111.39,111.35,23.487]
[1644474060671,1.27407505,111.38,111.35,23.487]
[1644474061069,13.4759,111.37,111.34,23.2158]
[1644474061270,13.4759,111.37,111.35,3.03219997]
[1644474061471,13.4759,111.37,111.33,29.4751]
[1644474061872,13.4759,111.37,111.33,42.9506]
[1644474064272,14.74837505,111.38,111.33,42.9506]
[1644474064676,13.4743,111.38,111.33,42.9506]
[1644474064877,14.74837505,111.38,111.33,42.9506]
[1644474065075,13.4743,111.38,111.33,42.9506]
[1644474065275,13.4743,111.38,111.33,36.9506]
[1644474065476,14.74837505,111.38,111.33,36.9506]
[1644474065677,13.4743,111.38,111.33,36.9506]
[1644474065877,14.74837505,111.38,111.33,36.9506]
[1644474069281,14.74837505,111.38,111.34,34.94576015]
[1644474069484,1.27407505,111.38,111.34,48.42006015]
[1644474069683,1.27407505,111.4,111.34,48.67006015]
[1644474069886,1.27407505,111.4,111.35,0.024]
[1644474071085,1.27407505,111.4,111.36,13.4714]
[1644474071685,1.27407505,111.41,111.36,13.4714]
[1644474071885,1.27407505,111.41,111.36,13.7454]
[1644474072489,1.27407505,111.42,111.36,26.2054]
[1644474072687,1.27407505,111.43,111.37,30.1772]
[1644474072892,1.27407505,111.44,111.38,52.54935617]
[1644474073287,1.27407505,111.44,111.38,52.79935617]
[1644474073490,1.27407505,111.44,111.38,65.25935617]
[1644474073687,1.27407505,111.44,111.39,24.5555]
[1644474073887,1.27407505,111.44,111.4,13.4665]
[1644474074687,1.27407505,111.43,111.37,18.484]
[1644474075091,1.27407505,111.43,111.37,18.734]
[1644474075489,1.27407505,111.43,111.39,34.34312096]
[1644474076289,1.27407505,111.44,111.39,34.34312096]
[1644474077193,1.27407505,111.44,111.39,48.06122096]
[1644474077600,1.27407505,111.45,111.4,12.46]
[1644474077897,1.27407505,111.46,111.4,36.5454]
[1644474078297,1.27407505,111.46,111.41,13.4634]
[1644474078697,1.27407505,111.46,111.41,13.7134]
[1644474079099,1.27407505,111.47,111.41,13.7134]
[1644474079324,1.27407505,111.48,111.42,22.7428]
[1644474079498,1.27407505,111.48,111.43,48.69365197]
[1644474079701,1.27407505,111.49,111.43,48.94365197]
[1644474081101,1.27407505,111.5,111.43,48.94365197]
[1644474081500,1.27407505,111.51,111.43,48.94365197]
[1644474081701,1.27407505,111.51,111.45,13.4594]
[1644474082101,1.27407505,111.51,111.45,22.6654]
[1644474082313,1.27407505,111.51,111.45,22.9154]
[1644474082502,19.484,111.56,111.45,35.3754]
[1644474082503,1.27407505,111.52,111.45,35.3754]
[1644474083106,1.27407505,111.52,111.47,39.98760652]
[1644474084304,1.27407505,111.52,111.47,53.44480652]
[1644474084504,1.27407505,111.53,111.47,53.44480652]
[1644474086006,14.73147505,111.54,111.47,53.44480652]
[1644474086207,14.73147505,111.54,111.47,53.69480652]
[1644474089009,14.73147505,111.54,111.47,53.44480652]
[1644474091212,1.27407505,111.54,111.47,53.44480652]
[1644474091708,1.27407505,111.54,111.47,53.69480652]